bitfinex-derivatives/quotes_BTCF0:USTF0_20250827
["timestamp","ask_amount","ask_price","bid_price","bid_amount"]
[1756275539313,1.30742154,111310.0,111300.0,0.49448691]
[1756275539514,1.30742154,111310.0,111300.0,0.52897691]
[1756275540312,1.04606196,111310.0,111300.0,0.52897691]
[1756275540513,1.30742154,111310.0,111300.0,0.52897691]
[1756275542018,1.56878112,111310.0,111300.0,0.09214]
[1756275542218,1.81878112,111310.0,111300.0,0.07247]
[1756275542415,1.55742154,111310.0,111300.0,0.07247]
[1756275542615,1.8387495,111310.0,111300.0,0.03384]
[1756275542816,1.8387495,111310.0,111300.0,0.07247]
[1756275543218,1.8387495,111310.0,111300.0,0.10496]
[1756275543419,1.8387495,111310.0,111300.0,0.10396]
[1756275545823,1.5887495,111310.0,111300.0,0.10396]
[1756275546121,1.5887495,111310.0,111300.0,0.06947]
[1756275546422,1.5887495,111310.0,111300.0,0.03084]
[1756275546622,1.5896295,111310.0,111300.0,0.03084]
[1756275546824,1.5896295,111310.0,111300.0,0.06943]
[1756275547219,1.06691034,111310.0,111300.0,0.10187]
[1756275547525,1.5896295,111310.0,111300.0,0.10187]
[1756275548022,1.5896295,111310.0,111300.0,0.14631]
[1756275548323,0.7573095,111310.0,111300.0,0.14631]
[1756275548518,1.5896295,111310.0,111300.0,0.06943]
[1756275548824,1.5896295,111310.0,111300.0,0.03084]
[1756275549225,1.8396295,111310.0,111300.0,0.04647]
[1756275550131,1.8396295,111310.0,111300.0,0.03084]
[1756275550625,1.8396295,111310.0,111300.0,0.10187]
[1756275550814,1.8396295,111310.0,111300.0,0.06943]
[1756275551019,1.31691034,111310.0,111300.0,0.04647]
[1756275551222,1.67771034,111310.0,111300.0,0.02908]
[1756275551428,2.2004295,111310.0,111300.0,0.04471]
[1756275551625,1.67771034,111310.0,111300.0,0.04471]
[1756275551825,2.2004295,111310.0,111300.0,0.04471]
[1756275552025,2.2004295,111310.0,111300.0,0.02908]
[1756275552726,2.2004295,111310.0,111300.0,0.04471]
[1756275552922,2.2004295,111310.0,111300.0,0.02908]
[1756275553131,1.9504295,111310.0,111300.0,0.001]
[1756275553630,2.2004295,111310.0,111300.0,0.001]
[1756275555127,1.67771034,111310.0,111300.0,0.001]
[1756275555434,2.2004295,111310.0,111300.0,0.001]
[1756275557528,1.67771034,111310.0,111300.0,0.001]
[1756275557728,2.2004295,111310.0,111300.0,0.001]
[1756275558135,1.67771034,111310.0,111300.0,0.001]
[1756275558337,2.2004295,111310.0,111300.0,0.001]
[1756275560735,1.67771034,111310.0,111300.0,0.001]
[1756275560931,2.2004295,111310.0,111300.0,0.001]
[1756275561331,1.9504295,111310.0,111300.0,0.001]
[1756275562925,2.3204295,111310.0,111300.0,0.001]
[1756275563933,2.3204295,111310.0,111300.0,0.0009]
[1756275564736,1.79771034,111310.0,111300.0,0.0009]
[1756275564943,2.3204295,111310.0,111300.0,0.0009]
[1756275566139,1.79771034,111310.0,111300.0,0.0009]
[1756275566438,0.1332714,111300.0,111290.0,0.02129728]
[1756275566638,0.91735014,111300.0,111290.0,0.02129728]
[1756275566839,0.91735014,111300.0,111290.0,0.02219728]
[1756275567438,0.91735014,111300.0,111290.0,0.05027728]
[1756275567838,0.91735014,111300.0,111290.0,0.04937728]
[1756275568241,0.65599056,111300.0,111290.0,0.04937728]
[1756275568539,0.65599056,111300.0,111290.0,0.05037728]
[1756275568742,0.65599056,111300.0,111290.0,0.08896728]
[1756275569040,0.1332714,111300.0,111290.0,0.08896728]
[1756275569340,1.49303056,111300.0,111290.0,0.08896728]
[1756275569735,2.11519014,111300.0,111290.0,0.08896728]
[1756275569939,1.85383056,111300.0,111290.0,0.05037728]
[1756275571237,2.11519014,111300.0,111290.0,0.05037728]
[1756275571834,1.85383056,111300.0,111290.0,0.08896728]
[1756275572135,2.11519014,111300.0,111290.0,0.05037728]
[1756275572439,1.85383056,111300.0,111290.0,0.08896728]
[1756275573340,1.85383056,111300.0,111290.0,0.12140728]
[1756275573843,1.85383056,111300.0,111290.0,0.08896728]
[1756275574039,1.85383056,111300.0,111290.0,0.06600728]
[1756275574339,0.0898575,111280.0,111270.0,0.02808]
[1756275574543,0.1360156,111270.0,111260.0,0.11446]
[1756275574745,0.1360237,111260.0,111250.0,0.44282]
[1756275574940,1.49566286,111260.0,111250.0,0.47526]
[1756275575341,1.51597387,111260.0,111250.0,0.44282]
[1756275575544,1.51197387,111260.0,111250.0,0.47526]
[1756275575742,0.98925471,111260.0,111250.0,0.47526]
[1756275575943,1.51197387,111260.0,111250.0,0.47526]
[1756275576144,1.51197387,111260.0,111250.0,0.47726]
[1756275576546,1.51197387,111260.0,111250.0,0.50709]
[1756275576746,1.51197387,111260.0,111250.0,0.43122]
[1756275577147,1.51197387,111260.0,111250.0,0.4634]
[1756275577946,1.51197387,111260.0,111250.0,0.48751]
[1756275578746,1.51197387,111260.0,111250.0,0.50636]
[1756275579543,2.38413345,111260.0,111250.0,0.004]
[1756275579742,2.38413345,111260.0,111250.0,1e-07]
[1756275579743,2.73413345,111260.0,111250.0,1e-07]
[1756275580047,1.54721345,111260.0,111250.0,1e-07]
[1756275580244,0.1375698,111240.0,111230.0,0.14006]
[1756275580449,1.20784938,111240.0,111230.0,0.40141958]
[1756275580646,1.20784938,111240.0,111230.0,0.14006]
[1756275580851,0.37084938,111240.0,111230.0,0.40141958]
[1756275581151,1.20772938,111240.0,111230.0,0.40141958]
[1756275581551,1.23580938,111240.0,111230.0,0.14006]
[1756275581854,1.23580938,111240.0,111230.0,0.40141958]
[1756275582146,1.23580938,111240.0,111230.0,0.14006]
[1756275582449,1.23588938,111240.0,111230.0,0.14006]
[1756275582651,1.23588938,111240.0,111230.0,0.40141958]
[1756275582851,0.9462498,111240.0,111230.0,0.14006]
[1756275583055,1.46884896,111240.0,111230.0,0.14006]
[1756275583260,1.49692896,111240.0,111230.0,0.14006]
[1756275583760,0.66028896,111240.0,111230.0,0.14006]
[1756275583960,1.49684896,111240.0,111230.0,0.14006]
[1756275584562,0.9739298,111240.0,111230.0,0.14006]
[1756275584758,1.49664896,111240.0,111230.0,0.14006]
[1756275585060,1.56696195,111240.0,111230.0,0.14006]
[1756275585261,0.1375779,111230.0,111220.0,0.76221958]
[1756275585462,0.39893748,111230.0,111220.0,0.76221958]
[1756275585662,0.39893748,111230.0,111220.0,0.46868]
[1756275585862,0.39893748,111230.0,111220.0,0.76221958]
[1756275586062,0.39893748,111230.0,111220.0,0.50086]
[1756275586464,0.39893748,111230.0,111220.0,0.76321958]
[1756275586663,0.39893748,111230.0,111220.0,0.50186]
[1756275587065,0.39893748,111230.0,111220.0,0.76321958]
[1756275587364,1.20701748,111230.0,111220.0,0.76321958]
[1756275587565,1.20701748,111230.0,111220.0,0.76421958]
[1756275587762,0.0898979,111230.0,111220.0,1.11548516]
[1756275587968,0.0898979,111230.0,111220.0,1.02557916]
[1756275588167,0.35125748,111230.0,111220.0,0.76421958]
[1756275588563,0.37085748,111230.0,111220.0,0.76421958]
[1756275588964,0.39893748,111230.0,111220.0,0.76421958]
[1756275589471,0.4588669,111230.0,111220.0,0.50286]
[1756275590666,0.4869469,111230.0,111220.0,0.47068]
[1756275590968,0.8477469,111230.0,111220.0,0.14206]
[1756275591564,0.0898979,111230.0,111220.0,0.9421345]
[1756275591764,0.0898979,111230.0,111220.0,1.102229]
[1756275592068,0.4588669,111230.0,111220.0,0.50286]
[1756275592260,0.4869469,111230.0,111220.0,0.14206]
[1756275593066,0.1375779,111230.0,111220.0,0.14206]
[1756275593269,0.4869469,111230.0,111220.0,0.14206]
[1756275595273,0.1375779,111230.0,111220.0,0.14206]
[1756275595878,0.1094979,111230.0,111220.0,0.2319656]
[1756275596173,1.2939469,111230.0,111220.0,0.14206]
[1756275596366,1.2935869,111230.0,111220.0,0.2319656]
[1756275596670,1.3216669,111230.0,111220.0,0.2319656]
[1756275596871,0.4869469,111230.0,111220.0,0.2319656]
[1756275597075,1.3220669,111230.0,111220.0,0.2319656]
[1756275597668,0.1375779,111230.0,111220.0,0.2319656]
[1756275597975,1.3219469,111230.0,111220.0,0.2319656]
[1756275598380,0.4869469,111230.0,111220.0,0.2319656]
[1756275598578,1.3219469,111230.0,111220.0,0.2319656]
[1756275598982,0.4869469,111230.0,111220.0,0.14206]
[1756275599276,1.3218669,111230.0,111220.0,0.14206]
[1756275601387,0.4869469,111230.0,111220.0,0.14206]
[1756275601576,1.3214669,111230.0,111220.0,0.2319656]
[1756275602276,0.4392669,111230.0,111220.0,0.2319656]
[1756275602581,1.36341179,111240.0,111230.0,0.14006]
[1756275602770,1.36341179,111240.0,111230.0,0.1579952]
[1756275603078,1.39149179,111240.0,111230.0,0.1579952]
[1756275603877,1.39149179,111240.0,111230.0,0.1258152]
[1756275604183,1.39149179,111240.0,111230.0,0.1579952]
[1756275606785,0.55725179,111240.0,111230.0,0.1579952]
[1756275606988,1.01628279,111240.0,111230.0,1.2080617]
[1756275607182,0.16020279,111240.0,111230.0,1.2080617]
[1756275608594,0.0898898,111240.0,111230.0,1.2080617]
[1756275611090,0.0898898,111240.0,111230.0,0.8586927]
[1756275611294,0.0898898,111240.0,111230.0,1.2080617]
[1756275614690,0.0898898,111240.0,111230.0,2.0442217]
[1756275617699,0.16010239,111250.0,111240.0,0.2339895]
[1756275617990,0.52896139,111250.0,111240.0,0.5947895]
[1756275618382,0.52896139,111250.0,111240.0,0.5049]
[1756275618588,0.55704139,111250.0,111240.0,0.5049]
[1756275618996,0.55804139,111250.0,111240.0,0.5049]
[1756275619600,0.55804139,111250.0,111240.0,0.1441]
[1756275619793,0.16110239,111250.0,111240.0,0.5049]
[1756275620097,0.51047139,111250.0,111240.0,0.5049]
[1756275621092,0.07122039,111250.0,111240.0,0.9441584]
[1756275621297,0.07122039,111250.0,111240.0,1.1941584]
[1756275621686,0.07122039,111250.0,111240.0,0.8447894]
[1756275621987,0.07122039,111250.0,111240.0,1.1941584]
[1756275622189,0.001,111250.0,111240.0,1.1941584]
[1756275622498,0.02031101,111260.0,111250.0,0.25206583]
[1756275622696,0.02031101,111260.0,111250.0,1.79807483]
[1756275624095,0.02031101,111260.0,111250.0,2.04807483]
[1756275625096,0.02131101,111260.0,111250.0,2.04807483]
[1756275625600,0.50301176,111280.0,111270.0,0.2174952]
[1756275625802,0.53109176,111280.0,111270.0,0.2339652]
[1756275625992,1.2859737,111290.0,111270.0,0.2339652]
[1756275626193,0.349369,111280.0,111270.0,0.2339652]
[1756275626797,0.353369,111280.0,111270.0,0.2339652]
[1756275627099,0.4432322,111280.0,111270.0,0.2339652]
[1756275627600,0.0938632,111280.0,111270.0,0.2339652]
[1756275627795,0.0938632,111280.0,111270.0,0.9441342]
[1756275628001,0.0938632,111280.0,111270.0,0.5947652]
[1756275628195,0.004,111280.0,111270.0,1.44792981]
[1756275628402,0.0938571,111280.0,111270.0,1.79729881]
[1756275628898,0.002,111280.0,111270.0,1.79729881]
[1756275629094,0.003,111280.0,111270.0,1.79729881]
[1756275629300,0.001,111280.0,111270.0,1.79729881]
[1756275629802,0.55645737,111290.0,111280.0,0.1479771]
[1756275630004,0.55645737,111290.0,111280.0,0.5947571]
[1756275630303,0.20708837,111290.0,111280.0,0.5947571]
[1756275631907,0.55845737,111290.0,111280.0,0.5947571]
[1756275632504,0.55945737,111290.0,111280.0,0.5947571]
[1756275633605,0.53580987,111290.0,111280.0,0.5947571]
[1756275634008,0.18644087,111290.0,111280.0,0.5947571]
[1756275635005,0.09658637,111290.0,111280.0,0.9441261]
[1756275635807,0.18643547,111290.0,111280.0,0.9441261]
[1756275636112,0.18543547,111290.0,111280.0,0.9441261]
[1756275637210,0.18643547,111290.0,111280.0,0.9441261]
[1756275637408,0.18643547,111290.0,111280.0,0.5947571]
[1756275637708,0.18643547,111290.0,111280.0,0.9441261]
[1756275639709,0.18643547,111290.0,111280.0,0.5947571]
[1756275640010,0.18643547,111290.0,111280.0,0.9441261]
[1756275641305,0.09658637,111290.0,111280.0,0.9441261]
[1756275641909,0.02304193,111290.0,111280.0,1.1941261]
[1756275642704,0.02204193,111290.0,111280.0,1.1941261]
[1756275645210,0.02004193,111290.0,111280.0,1.1941261]
[1756275646708,0.16021057,111300.0,111280.0,1.2316932]
[1756275646912,0.16021057,111300.0,111290.0,0.850039]
[1756275647212,0.17676057,111300.0,111290.0,1.682719]
[1756275647415,0.17676057,111300.0,111290.0,0.850039]
[1756275647615,0.19680057,111300.0,111290.0,0.9398881]
[1756275647913,0.19680057,111300.0,111290.0,1.4231991]
[1756275648214,0.19880057,111300.0,111290.0,1.4231991]
[1756275648413,0.79816957,111300.0,111290.0,0.2297191]
[1756275648717,0.79816957,111300.0,111290.0,0.02757]
[1756275648917,1.63084957,111300.0,111290.0,0.02757]
[1756275649214,1.99164957,111300.0,111290.0,0.06497]
[1756275649410,1.99264957,111300.0,111290.0,0.02757]
[1756275649918,1.99264957,111300.0,111290.0,0.06497]
[1756275650414,1.99264957,111300.0,111290.0,0.09704]
[1756275651117,1.99264957,111300.0,111290.0,0.11686]
[1756275652519,1.99264957,111300.0,111290.0,0.11776]
[1756275655921,1.99264957,111300.0,111290.0,0.08569]
[1756275660424,1.99264957,111300.0,111290.0,0.06587]
[1756275661226,1.99264957,111300.0,111290.0,0.04385]
[1756275662035,1.99264957,111300.0,111290.0,0.06587]
[1756275663538,1.15996957,111300.0,111290.0,0.09794]
[1756275663837,1.63172957,111300.0,111290.0,0.14077]
[1756275664638,0.79916957,111300.0,111290.0,0.14077]
[1756275664834,1.28236057,111300.0,111290.0,0.14077]
[1756275665140,0.17975947,111300.0,111290.0,0.8414189]
[1756275665338,0.17975947,111300.0,111290.0,1.1907879]
[1756275665536,0.19979947,111300.0,111290.0,1.1907879]
[1756275665731,0.08991867,111300.0,111290.0,1.1907879]
[1756275665936,0.16320947,111300.0,111290.0,0.9407879]
[1756275666139,0.16320947,111300.0,111290.0,1.1907879]
[1756275666335,0.07336867,111300.0,111290.0,1.1907879]
[1756275667642,0.19945947,111300.0,111290.0,1.1907879]
[1756275667836,0.07336867,111300.0,111290.0,1.1907879]
[1756275668440,0.07136867,111300.0,111290.0,1.1907879]
[1756275669241,0.001,111300.0,111290.0,1.1907879]
[1756275669844,0.48427388,111320.0,111310.0,0.2331227]
[1756275670047,1.31703388,111320.0,111310.0,0.9432917]
[1756275671348,1.31903388,111320.0,111310.0,0.9432917]
[1756275671748,0.48627388,111320.0,111310.0,0.9432917]
[1756275671951,1.31979388,111320.0,111310.0,0.9432917]
[1756275672445,0.9823213,111320.0,111310.0,0.96164867]
[1756275673147,0.9823213,111320.0,111310.0,0.61227967]
[1756275673745,1.3316903,111320.0,111310.0,0.40669697]
[1756275673954,1.6924903,111320.0,111310.0,0.04589697]
[1756275674250,1.76292521,111320.0,111310.0,0.04589697]
[1756275674450,2.01292521,111320.0,111310.0,0.04589697]
[1756275674748,0.0942127,111310.0,111300.0,0.02754]
[1756275675051,0.4435817,111310.0,111300.0,0.02754]
[1756275676345,0.4435817,111310.0,111300.0,0.04287]
[1756275676551,0.4435817,111310.0,111300.0,0.02754]
[1756275677551,0.8043817,111310.0,111300.0,0.02754]
[1756275677948,0.8083817,111310.0,111300.0,0.02754]
[1756275678550,0.71608305,111310.0,111300.0,0.02754]
[1756275681150,0.96608305,111310.0,111300.0,0.02754]
[1756275681446,0.96608305,111310.0,111290.0,0.0009]
[1756275681653,1.2718902,111300.0,111290.0,0.04377]
[1756275681851,1.2718902,111300.0,111290.0,0.066]
[1756275683656,1.2728902,111300.0,111290.0,0.14419]
[1756275684254,1.2748902,111300.0,111290.0,0.14419]
[1756275684656,1.2728902,111300.0,111290.0,0.14419]
[1756275684859,0.9255212,111300.0,111290.0,0.14419]
[1756275685054,1.2748902,111300.0,111290.0,0.14419]
[1756275685456,1.2738902,111300.0,111290.0,0.14419]
[1756275685656,1.2758902,111300.0,111290.0,0.14419]
[1756275687654,1.2758902,111300.0,111290.0,0.12044]
[1756275687860,1.2758902,111300.0,111290.0,0.08545]
[1756275688159,1.2758902,111300.0,111290.0,0.066]
[1756275688356,1.2758902,111300.0,111290.0,0.04377]
[1756275688956,1.6366902,111300.0,111290.0,0.04377]
[1756275691058,1.6366902,111300.0,111290.0,0.02844]
[1756275692863,0.0898495,111290.0,111270.0,0.40654461]
[1756275693166,1.6401466,111280.0,111270.0,0.14329]
[1756275693567,1.8901466,111280.0,111270.0,0.14329]
[1756275693764,1.6401466,111280.0,111270.0,0.14329]
[1756275694161,1.6401466,111280.0,111270.0,0.11954]
[1756275694361,1.6401466,111280.0,111270.0,0.14329]
[1756275694656,1.6401466,111280.0,111270.0,0.08455]
[1756275695466,1.6401466,111280.0,111270.0,0.11954]
[1756275695762,1.6401466,111280.0,111270.0,0.08455]
[1756275696171,1.6401466,111280.0,111270.0,0.14311]
[1756275696762,1.6421466,111280.0,111270.0,0.14311]
[1756275696959,1.6441466,111280.0,111270.0,0.11954]
[1756275697163,1.6441466,111280.0,111270.0,0.14311]
[1756275698668,1.6441466,111280.0,111270.0,0.11954]
[1756275699073,0.8040266,111280.0,111270.0,0.08455]
[1756275699274,1.6432266,111280.0,111270.0,0.14208]
[1756275699670,1.6432266,111280.0,111270.0,0.08455]
[1756275699869,1.6432266,111280.0,111270.0,0.04287]
[1756275700076,1.6432266,111280.0,111270.0,0.02754]
[1756275703076,1.6424666,111280.0,111270.0,0.11012]
[1756275703279,1.6424666,111280.0,111270.0,0.14408]
[1756275703688,0.8040266,111280.0,111270.0,0.14408]
[1756275703885,1.6421866,111280.0,111270.0,0.14408]
[1756275704886,1.6421866,111280.0,111270.0,0.02754]
[1756275709486,0.0898731,111260.0,111250.0,0.37888443]
[1756275709684,1.3107921,111260.0,111250.0,0.13462443]
[1756275709882,1.38314868,111260.0,111250.0,0.13462443]
[1756275711688,1.38314868,111260.0,111250.0,0.16270443]
[1756275712089,1.38314868,111260.0,111250.0,0.10517443]
[1756275712489,1.38314868,111260.0,111250.0,0.13913443]
[1756275712692,1.38278868,111260.0,111250.0,0.16270443]
[1756275712991,1.40129096,111260.0,111250.0,0.16270443]
[1756275715490,0.56485096,111260.0,111250.0,0.16270443]
[1756275715694,1.40117096,111260.0,111250.0,0.16270443]
[1756275717091,1.40081096,111260.0,111250.0,0.16270443]
[1756275719699,1.76161096,111260.0,111250.0,0.16270443]
[1756275721502,1.76161096,111260.0,111250.0,0.04616443]
[1756275721897,1.76161096,111260.0,111250.0,0.01808443]
[1756275722797,2.01161096,111260.0,111250.0,3e-08]
[1756275723696,0.1246387,111240.0,111230.0,0.1086152]
[1756275723896,1.3090477,111240.0,111230.0,0.1425752]
[1756275724097,1.3090477,111240.0,111230.0,0.1625552]
[1756275724402,1.3090477,111240.0,111230.0,0.16272186]
[1756275724899,1.3090477,111240.0,111230.0,0.16372186]
[1756275725803,0.9596787,111240.0,111230.0,0.16372186]
[1756275726804,0.9596787,111240.0,111230.0,0.16572186]
[1756275728402,0.1246387,111240.0,111230.0,0.16572186]
[1756275728602,0.9587587,111240.0,111230.0,0.16572186]
[1756275728803,0.1080887,111240.0,111230.0,0.51509086]
[1756275729002,0.9420087,111240.0,111230.0,0.51509086]
[1756275730005,0.9585587,111240.0,111230.0,0.51509086]
[1756275730706,0.1246387,111240.0,111230.0,0.51509086]
[1756275731005,0.9596387,111240.0,111230.0,0.51509086]
[1756275731802,0.1246387,111240.0,111230.0,0.60498766]
[1756275732104,0.9252487,111240.0,111230.0,1.21578766]
[1756275732304,0.0898887,111240.0,111230.0,1.21578766]
[1756275733602,0.7367713,111250.0,111230.0,1.13017766]
[1756275733810,0.845822,111250.0,111240.0,0.852499]
[1756275734502,0.862372,111250.0,111240.0,0.491699]
[1756275734702,0.862372,111250.0,111240.0,0.14233]
[1756275734902,1.211741,111250.0,111240.0,0.14333]
[1756275735106,1.572541,111250.0,111240.0,0.14333]
[1756275736310,1.572541,111250.0,111240.0,0.1102]
[1756275736511,1.572541,111250.0,111240.0,0.08644]
[1756275736702,1.822541,111250.0,111240.0,0.001]
[1756275737205,0.4739777,111240.0,111230.0,0.02741]
[1756275737406,0.49398903,111240.0,111230.0,0.02741]
[1756275738107,0.1090668,111230.0,111220.0,0.50313]
[1756275738309,1.3087858,111230.0,111220.0,0.47]
[1756275738509,1.3077858,111230.0,111220.0,0.42698]
[1756275738711,1.3077858,111230.0,111220.0,0.38821]
[1756275739409,1.3077858,111230.0,111220.0,0.38921]
[1756275739610,1.3077858,111230.0,111220.0,0.40532]
[1756275740207,0.4729858,111230.0,111220.0,0.42698]
[1756275740412,0.1236168,111230.0,111220.0,0.50313]
[1756275740613,0.9581768,111230.0,111220.0,0.50413]
[1756275741215,1.3085458,111230.0,111220.0,0.50313]
[1756275741910,1.3085458,111230.0,111220.0,0.47937]
[1756275742615,1.3085458,111230.0,111220.0,0.50313]
[1756275743818,1.3085458,111230.0,111220.0,0.38821]
[1756275744012,1.3085458,111230.0,111220.0,0.40432]
[1756275744708,1.3085458,111230.0,111220.0,0.42698]
[1756275745709,0.9432668,111230.0,111220.0,0.852499]
[1756275745918,0.9432668,111230.0,111220.0,0.87094926]
[1756275746222,0.9432668,111230.0,111220.0,0.52158026]
[1756275746521,0.9432668,111230.0,111220.0,0.87094926]
[1756275748320,0.9429068,111230.0,111220.0,0.96085416]
[1756275748922,0.9429068,111230.0,111220.0,0.87094926]
[1756275749321,0.9584568,111230.0,111220.0,0.87094926]
[1756275749824,1.3078258,111230.0,111220.0,0.52158026]
[1756275750124,0.9584568,111230.0,111220.0,0.16078026]
[1756275750314,1.3078258,111230.0,111220.0,0.16078026]
[1756275751124,0.9584568,111230.0,111220.0,0.16078026]
[1756275752022,0.1246168,111230.0,111220.0,0.25068516]
[1756275752226,0.9431868,111230.0,111220.0,0.96085416]
[1756275752825,0.1090668,111230.0,111220.0,0.96085416]
[1756275753122,0.9428268,111230.0,111220.0,0.96085416]
[1756275753527,0.1090668,111230.0,111220.0,0.96085416]
[1756275753723,0.9426668,111230.0,111220.0,0.96085416]
[1756275753920,0.1090668,111230.0,111220.0,0.96085416]
[1756275754120,0.9426668,111230.0,111220.0,0.96085416]
[1756275754525,0.1090668,111230.0,111220.0,0.96085416]
[1756275754729,0.9426668,111230.0,111220.0,0.96085416]
[1756275755822,0.0898968,111230.0,111220.0,0.96085416]
[1756275756026,0.0908967,111230.0,111220.0,1.21085416]
[1756275756423,0.001,111230.0,111220.0,1.21085416]
[1756275757221,0.0898941,111240.0,111230.0,0.1469468]
[1756275757422,0.0898941,111240.0,111230.0,0.9413858]
[1756275757924,0.0905584,111250.0,111240.0,0.2312087]
[1756275758131,0.0898884,111250.0,111240.0,0.9413777]
[1756275759226,0.0928884,111250.0,111240.0,0.9413777]
[1756275760333,0.0935584,111250.0,111240.0,0.9413777]
[1756275760840,0.0945584,111250.0,111240.0,0.9413777]
[1756275761638,0.004,111250.0,111240.0,0.9413777]
[1756275761833,0.004,111250.0,111240.0,1.1913777]
[1756275762136,0.07235658,111260.0,111250.0,0.2312007]
[1756275762326,0.923951,111270.0,111260.0,0.2311926]
[1756275762525,0.928621,111270.0,111260.0,0.9413616]
[1756275762731,0.97191332,111270.0,111260.0,0.5919926]
[1756275762932,0.97191332,111270.0,111260.0,0.490689]
[1756275763233,0.97191332,111270.0,111260.0,0.14132]
[1756275763533,0.98746332,111270.0,111260.0,0.14132]
[1756275764036,1.69763232,111270.0,111260.0,0.10933]
[1756275764229,1.69763232,111270.0,111260.0,0.14132]
[1756275764230,1.69863232,111270.0,111260.0,0.14132]
[1756275764422,1.69863232,111270.0,111260.0,0.04601]
[1756275764841,1.51969379,111270.0,111260.0,0.04601]
[1756275765033,1.60956409,111270.0,111260.0,0.09081]
[1756275765534,1.60956409,111270.0,111260.0,0.14132]
[1756275768532,1.26019509,111270.0,111260.0,0.14132]
[1756275768736,1.33363262,111270.0,111260.0,0.14132]
[1756275769029,1.34918262,111270.0,111260.0,0.02975]
[1756275769332,1.69855162,111270.0,111260.0,0.02975]
[1756275769537,1.69855162,111270.0,111260.0,0.04601]
[1756275769737,1.69855162,111270.0,111260.0,0.06828]
[1756275770036,1.69855162,111270.0,111260.0,0.14132]
[1756275771437,0.86455162,111270.0,111260.0,0.14132]
[1756275771637,1.69879162,111270.0,111260.0,0.14132]
[1756275775740,0.86455162,111270.0,111260.0,0.14132]
[1756275775940,1.69795162,111270.0,111260.0,0.14132]
[1756275776938,1.67105162,111270.0,111260.0,0.14132]
[1756275777141,1.2938593,111270.0,111260.0,0.14132]
[1756275777338,1.2938593,111270.0,111260.0,0.2311926]
[1756275778742,0.4449093,111270.0,111260.0,0.2311926]
[1756275778947,1.2783093,111270.0,111260.0,0.2311926]
[1756275779243,0.9289403,111270.0,111260.0,0.2311926]
[1756275779445,0.94569057,111270.0,111260.0,0.2311926]
[1756275781046,1.29505957,111270.0,111260.0,0.2311926]
[1756275781345,1.29505957,111270.0,111260.0,0.04601]
[1756275781646,0.0955403,111270.0,111260.0,0.5485716]
[1756275781855,0.9242303,111270.0,111260.0,0.9413616]
[1756275782352,0.83436,111270.0,111260.0,0.9413616]
[1756275782552,0.001,111270.0,111260.0,1.1913616]
[1756275784154,0.001,111270.0,111260.0,1.1923616]
[1756275784658,0.95968572,111290.0,111280.0,0.2311763]
[1756275784852,0.95968572,111290.0,111280.0,0.5919763]
[1756275785053,0.95968572,111290.0,111280.0,0.9413453]
[1756275786356,0.96068572,111290.0,111280.0,0.9413453]
[1756275786953,0.12732572,111290.0,111280.0,0.9413453]
[1756275787156,0.85439817,111290.0,111280.0,0.9413453]
[1756275787855,0.02107817,111290.0,111280.0,0.9413453]
[1756275788056,0.94424657,111290.0,111280.0,0.9413453]
[1756275788858,0.11092657,111290.0,111280.0,0.9413453]
[1756275789155,0.94424657,111290.0,111280.0,0.9413453]
[1756275790060,0.94420657,111290.0,111280.0,0.9413453]
[1756275790361,0.94420657,111290.0,111280.0,1.3021453]
[1756275792658,0.94416657,111290.0,111280.0,1.3021453]
[1756275793759,0.85431817,111290.0,111280.0,1.3021453]
[1756275794760,0.02107817,111290.0,111280.0,1.3021453]
[1756275796458,0.02107817,111290.0,111280.0,1.3031453]
[1756275797159,0.02007817,111290.0,111280.0,1.3031453]
[1756275798160,0.02007817,111290.0,111280.0,0.9537763]
[1756275798362,0.02007817,111290.0,111280.0,1.3031453]
[1756275803165,0.02007817,111290.0,111280.0,1.6525143]
[1756275803553,0.02007817,111290.0,111280.0,1.67037672]
[1756275803861,0.02007817,111290.0,111280.0,1.32100772]
[1756275804062,0.02007817,111290.0,111280.0,2.15408772]
[1756275804762,0.02007817,111290.0,111280.0,2.15608772]
[1756275805666,0.02007817,111290.0,111280.0,1.32300772]
[1756275805864,0.02007817,111290.0,111280.0,2.15608772]
[1756275806366,0.02007817,111290.0,111280.0,2.15508772]
[1756275806565,0.02007817,111290.0,111280.0,2.15408772]
[1756275814565,0.10642854,111300.0,111290.0,0.2328384]
[1756275814764,0.10642854,111300.0,111290.0,0.9430074]
[1756275815973,0.0898429,111300.0,111290.0,0.9430074]
[1756275816172,0.0908429,111300.0,111290.0,0.9430074]
[1756275817671,0.11972197,111300.0,111290.0,0.9430074]
[1756275818774,0.0908429,111300.0,111290.0,0.9430074]
[1756275825274,0.0908429,111300.0,111290.0,1.1169343]
[1756275826179,0.0908429,111300.0,111290.0,0.85528635]
[1756275826981,0.0908429,111300.0,111290.0,0.5936384]
[1756275827178,0.0908429,111300.0,111290.0,0.85528635]
[1756275828973,0.0908429,111300.0,111290.0,0.82197635]
[1756275829182,0.0908429,111300.0,111290.0,0.76487795]
[1756275829377,0.0908429,111300.0,111290.0,0.85472615]
[1756275836085,0.0908429,111300.0,111290.0,0.5930782]
[1756275836280,0.0908429,111300.0,111290.0,0.85472615]
[1756275836587,0.0908429,111300.0,111290.0,0.76487795]
[1756275837186,0.0908429,111300.0,111290.0,0.85472625]
[1756275840186,0.0908429,111300.0,111290.0,0.5930783]
[1756275840386,0.0908429,111300.0,111290.0,0.85472625]
[1756275840887,0.0908429,111300.0,111290.0,0.5930783]
[1756275841086,0.0908429,111300.0,111290.0,0.76487795]
[1756275841783,0.0908429,111300.0,111290.0,0.50323]
[1756275842088,0.0908429,111300.0,111290.0,0.76487795]
[1756275842784,0.0908429,111300.0,111290.0,0.85472625]
[1756275843882,0.0908429,111300.0,111290.0,0.76487795]
[1756275844688,0.0908429,111300.0,111290.0,0.50323]
[1756275844885,0.0908429,111300.0,111290.0,0.76487795]
[1756275851185,0.0308429,111300.0,111290.0,0.76487795]
[1756275851386,0.0648381,111310.0,111300.0,0.14098]
[1756275851595,0.0648381,111310.0,111300.0,1.0250759]
[1756275851988,0.0648381,111310.0,111300.0,1.13339117]
[1756275853290,0.0648381,111310.0,111300.0,1.13439117]
[1756275853689,0.09484746,111310.0,111300.0,1.13439117]
[1756275855292,0.17301746,111310.0,111300.0,1.13439117]
[1756275855593,0.15071746,111310.0,111300.0,1.13439117]
[1756275856094,0.09484746,111310.0,111300.0,1.13439117]
[1756275858092,0.0648381,111310.0,111300.0,1.13439117]
[1756275858292,0.09386762,111310.0,111300.0,1.13439117]
[1756275858593,0.0648381,111310.0,111300.0,1.13439117]
[1756275861493,0.09381148,111310.0,111300.0,1.13439117]
[1756275862090,0.07043491,111320.0,111310.0,0.1917724]